fUST/lending_fUST_20250514
["ID","MTS","AMOUNT","RATE_DAILY","PERIOD"]
[360973360,1747171876501,-977.91,0.00016438,2]
[360973361,1747171876511,-400.0,0.00016438,2]
[360973362,1747171876521,-400.0,0.00016438,2]
[360973363,1747171876531,-400.0,0.00016438,2]
[360973364,1747171876541,-670.12,0.00016438,2]
[360973365,1747171876552,-400.0,0.00016438,2]
[360973366,1747171876562,-325.22601395,0.00016438,2]
[360973367,1747171876572,-649.09,0.00016438,2]
[360973368,1747171876583,-400.0,0.00016438,2]
[360973369,1747171876594,-400.0,0.00016438,2]
[360973370,1747171876604,-825.86,0.00016438,2]
[360973371,1747171876615,-594.55,0.00016438,2]
[360973372,1747171876625,-631.73,0.00016438,2]
[360973373,1747171876636,-400.63,0.00016438,2]
[360973374,1747171876647,-2082.85,0.00016438,2]
[360973375,1747171876658,-1700.28,0.00016438,2]
[360973376,1747171876668,-404.66,0.00016438,2]
[360973377,1747171876678,-400.0,0.00016438,2]
[360973378,1747171876689,-400.0,0.00016438,2]
[360973379,1747171876699,-498.37,0.00016438,2]
[360973380,1747171876710,-508.09,0.00016438,2]
[360973381,1747171876720,-1219.22,0.00016438,2]
[360973382,1747171876731,-400.0,0.00016438,2]
[360973383,1747171876741,-2779.5,0.00016438,2]
[360973384,1747171876752,-400.0,0.00016438,2]
[360973385,1747171876762,-400.0,0.00016438,2]
[360973386,1747171876773,-654.77,0.00016438,2]
[360973387,1747171876783,-1011.29,0.00016438,2]
[360973388,1747171876793,-400.0,0.00016438,2]
[360973389,1747171876804,-400.0,0.00016438,2]
[360973390,1747171876814,-400.0,0.00016438,2]
[360973391,1747171876824,-1757.96,0.00016438,2]
[360973392,1747171876834,-639.16,0.00016438,2]
[360973393,1747171876845,-828.55,0.00016438,2]
[360973394,1747171876855,-910.85,0.00016438,2]
[360973395,1747171876867,-1432.24,0.00016438,2]
[360973396,1747171876880,-400.0,0.00016438,2]
[360973397,1747171876890,-1271.55,0.00016438,2]
[360973398,1747171876901,-1964.72,0.00016438,2]
[360973399,1747171876913,-1346.18,0.00016438,2]
[360973400,1747171876923,-1807.95,0.00016438,2]
[360973401,1747171876934,-1872.93,0.00016438,2]
[360973402,1747171876945,-2038.91,0.00016438,2]
[360973403,1747171876956,-583.95,0.00016438,2]
[360973404,1747171876966,-400.0,0.00016438,2]
[360973405,1747171876978,-400.0,0.00016438,2]
[360973406,1747171876988,-444.52,0.00016438,2]
[360973407,1747171876998,-400.0,0.00016438,2]
[360973408,1747171877009,-777.75,0.00016438,2]
[360973409,1747171877020,-1133.72,0.00016438,2]
[360973410,1747171877031,-1278.45,0.00016438,2]
[360973411,1747171877042,-2383.74,0.00016438,2]
[360973412,1747171877052,-1367.7,0.00016438,2]
[360973413,1747171877061,-2669.62,0.00016438,2]
[360973414,1747171877071,-1343.88,0.00016438,2]
[360973415,1747171877081,-6469.5,0.00016438,2]
[360973416,1747171877091,-400.0,0.00016438,2]
[360973417,1747171877101,-1188.47,0.00016438,2]
[360973418,1747171877110,-400.0,0.00016438,2]
[360973419,1747171877120,-1336.58,0.00016438,2]
[360973420,1747171877130,-400.0,0.00016438,2]
[360973421,1747171877140,-400.0,0.00016438,2]
[360973422,1747171877150,-400.0,0.00016438,2]
[360973423,1747171877161,-400.0,0.00016438,2]
[360973424,1747171877170,-451.71,0.00016438,2]
[360973425,1747171877180,-400.0,0.00016438,2]
[360973426,1747171877191,-531.31,0.00016438,2]
[360973427,1747171877201,-443.98,0.00016438,2]
[360973428,1747171877212,-405.74,0.00016438,2]
[360973429,1747171877222,-400.0,0.00016438,2]
[360973430,1747171877232,-400.0,0.00016438,2]
[360973431,1747171877242,-1336.54,0.00016438,2]
[360973432,1747171877252,-400.0,0.00016438,2]
[360973433,1747171877262,-733.54,0.00016438,2]
[360973434,1747171877272,-602.94,0.00016438,2]
[360973435,1747171877282,-400.0,0.00016438,2]
[360973436,1747171877292,-1080.08,0.00016438,2]
[360973437,1747171877303,-420.67,0.00016438,2]
[360973438,1747171877313,-400.0,0.00016438,2]
[360973439,1747171877323,-693.78,0.00016438,2]
[360973440,1747171877334,-1431.64,0.00016438,2]
[360973441,1747171877344,-400.0,0.00016438,2]
[360973442,1747171877354,-1357.77,0.00016438,2]
[360973443,1747171877364,-654.02,0.00016438,2]
[360973444,1747171877374,-1212.64,0.00016438,2]
[360973445,1747171877384,-400.0,0.00016438,2]
[360973446,1747171877394,-2979.51,0.00016438,2]
[360973447,1747171877404,-400.0,0.00016438,2]
[360973448,1747171877414,-400.0,0.00016438,2]
[360973449,1747171877424,-791.3,0.00016438,2]
[360973450,1747171877435,-400.0,0.00016438,2]
[360973451,1747171877445,-6691.48,0.00016438,2]
[360973452,1747171877456,-329.28549108,0.00016438,2]
[360973453,1747171877466,-3240.36,0.00016438,2]
[360973454,1747171877476,-289.33472039,0.00016438,2]
[360973455,1747171877486,-796.34,0.00016438,2]
[360973456,1747171877496,-1457.87,0.00016438,2]
[360973457,1747171877505,-400.0,0.00016438,2]
[360973458,1747171877515,-1151.93,0.00016438,2]
[360973459,1747171877525,-575.28,0.00016438,2]
[360973460,1747171877536,-1965.01,0.00016438,2]
[360973461,1747171877546,-400.0,0.00016438,2]
[360973462,1747171877555,-1151.88,0.00016438,2]
[360973463,1747171877566,-523.95,0.00016438,2]
[360973464,1747171877576,-780.64,0.00016438,2]
[360973465,1747171877586,-2254.02,0.00016438,2]
[360973466,1747171877597,-885.61,0.00016438,2]
[360973467,1747171877607,-571.86,0.00016438,2]
[360973468,1747171877617,-400.0,0.00016438,2]
[360973469,1747171877627,-1896.51,0.00016438,2]
[360973471,1747171877637,-1446.73,0.00016438,2]
[360973472,1747171877647,-400.0,0.00016438,2]
[360973473,1747171877657,-287.85472305,0.00016438,2]
[360973474,1747171877668,-400.0,0.00016438,2]
[360973475,1747171877679,-2969.24,0.00016438,2]
[360973476,1747171877689,-3596.39,0.00016438,2]
[360973477,1747171877700,-761.95,0.00016438,2]
[360973478,1747171877710,-2929.92,0.00016438,2]
[360973479,1747171877720,-629.36,0.00016438,2]
[360973480,1747171877731,-400.0,0.00016438,2]
[360973481,1747171877741,-6035.7,0.00016438,2]
[360973482,1747171877751,-400.0,0.00016438,2]
[360973483,1747171877761,-720.33,0.00016438,2]
[360973484,1747171877772,-2648.74,0.00016438,2]
[360973485,1747171877781,-1698.59,0.00016438,2]
[360973486,1747171877792,-904.66,0.00016438,2]
[360973487,1747171877802,-458.91,0.00016438,2]
[360973488,1747171877812,-488.71,0.00016438,2]
[360973489,1747171877822,-4244.97,0.00016438,2]
[360973490,1747171877832,-400.0,0.00016438,2]
[360973491,1747171877843,-408.43,0.00016438,2]
[360973492,1747171877853,-424.56,0.00016438,2]
[360973493,1747171877864,-400.0,0.00016438,2]
[360973494,1747171877878,-832.4,0.00016438,2]
[360973495,1747171877888,-400.0,0.00016438,2]
[360973496,1747171877897,-687.37,0.00016438,2]
[360973497,1747171877907,-593.97,0.00016438,2]
[360973498,1747171877918,-933.65,0.00016438,2]
[360973499,1747171877927,-7895.42,0.00016438,2]
[360973500,1747171877938,-729.98,0.00016438,2]
[360973501,1747171877950,-781.28,0.00016438,2]
[360973502,1747171877959,-508.61,0.00016438,2]
[360973503,1747171877969,-630.59431976,0.00016438,2]
[360973504,1747171878542,-1117.90568024,0.00016438,2]
[360973505,1747171878553,-968.62,0.00016438,2]
[360973506,1747171878564,-2237.52,0.00016438,2]
[360973507,1747171878575,-400.0,0.00016438,2]
[360973508,1747171878586,-400.0,0.00016438,2]
[360973509,1747171878598,-948.76,0.00016438,2]
[360973510,1747171878610,-2025.0879721,0.00016438,2]
[360973527,1747172624572,-302.60764617,0.00010599,2]
[360973528,1747172626375,-160.38171384,0.00010599,2]
[360973529,1747172629653,-323.10784727,0.00010599,2]
[360973530,1747172633113,-165.7235016,0.00010599,2]
[360973531,1747172635797,-202.71509368,0.00010599,2]
[360973532,1747172637455,-299.47590942,0.00010599,2]
[360973533,1747172640269,-353.41686797,0.00010599,2]
[360973534,1747172641871,-177.90104503,0.00010599,2]
[360973535,1747172644540,-334.43021759,0.00010599,2]
[360973536,1747172646154,-165.72350157,0.00010599,2]
[360973537,1747172648306,-320.37467424,0.00010599,2]
[360973538,1747172650290,-286.59391669,0.00010599,2]
[360973539,1747172651996,-260.31795641,0.00010599,2]
[360973540,1747172654720,-230.50253992,0.00010599,2]
[360973541,1747172657472,-155.0,0.00010599,2]
[360973542,1747172659022,-162.93105575,0.00010599,2]
[360973543,1747172660586,-241.50479543,0.00010599,2]
[360973544,1747172662743,-185.29989962,0.00010599,2]
[360973545,1747172664359,-244.06422832,0.00010599,2]
[360973546,1747172665834,-398.25407141,0.00010599,2]
[360973547,1747172669034,-29.67351807,0.00010599,2]
[360973548,1747172684208,-162.44673282,0.00010599,2]
[360973549,1747172686864,-211.33230852,0.00010599,2]
[360973550,1747172690255,-241.39302396,0.00010599,2]
[360973551,1747172692947,-224.97153537,0.00010599,2]
[360973552,1747172695629,-415.88255024,0.00010599,2]
[360973553,1747172698309,-180.03912739,0.00010599,2]
[360973554,1747172747991,-3430.0,0.00010599,2]
[360973555,1747172833091,-133.9347217,0.00010599,2]
[360973556,1747172833115,-300.0,0.00010704,2]
[360973557,1747172833139,-500.0,0.00010705,2]
[360973558,1747172833163,-487.9204599,0.00010705,2]
[360973559,1747172834048,-249.15449928,9.816e-05,2]
[360973560,1747172840390,-200.06862657,9.816e-05,2]
[360973561,1747172841129,-220.01074738,9.816e-05,2]
[360973562,1747172843420,-285.90165442,9.718e-05,2]
[360973563,1747172845085,-308.68749008,9.718e-05,2]
[360973564,1747172845118,-4405.4108555,9.718e-05,2]
[360973565,1747172845141,-218.90862807,9.816e-05,2]
[360973566,1747172845165,-12.0795401,0.00010705,2]
[360973567,1747172845196,-199.91341373,0.00010705,2]
[360973568,1747172845218,-500.0,0.00010705,2]
[360973569,1747172845239,-500.0,0.00010705,2]
[360973570,1747172845264,-500.0,0.00010705,2]
[360973571,1747172845285,-500.0,0.00010705,2]
[360973572,1747172845307,-500.0,0.00010705,2]
[360973573,1747172845330,-500.0,0.00010705,2]
[360973574,1747172845353,-305.29864744,0.00010705,2]
[360973575,1747172845376,-116.63962669,0.00010705,2]
[360973576,1747172846715,-183.84308559,0.00010043,2]
[360973577,1747172848128,-5710.21647441,0.00010043,2]
[360973578,1747172848151,-383.36037331,0.00010705,2]
[360973579,1747172848178,-500.0,0.00010705,2]
[360973580,1747172848200,-500.0,0.00010705,2]
[360973581,1747172848227,-500.0,0.00010705,2]
[360973582,1747172848270,-500.0,0.00010705,2]
[360973583,1747172848294,-500.0,0.00010705,2]
[360973584,1747172848317,-500.57193664,0.00010705,2]
[360973585,1747172848340,-500.0,0.00010705,2]
[360973586,1747172848364,-500.0,0.00010705,2]
[360973587,1747172848386,-230.41524803,0.00010705,2]
[360973588,1747172848408,-500.0,0.00010705,2]
[360973589,1747172848431,-500.0,0.00010705,2]
[360973590,1747172848456,-500.0,0.00010705,2]
[360973591,1747172848481,-500.0,0.00010705,2]
[360973592,1747172848505,-500.0,0.00010705,2]
[360973593,1747172848529,-500.0,0.00010705,2]
[360973594,1747172848551,-500.0,0.00010705,2]
[360973595,1747172848576,-355.84887816,0.00010705,2]
[360973596,1747172848600,-500.0,0.00010705,2]
[360973597,1747172848625,-500.0,0.00010705,2]
[360973598,1747172848649,-500.0,0.00010705,2]
[360973599,1747172848672,-500.0,0.00010705,2]
[360973600,1747172848694,-500.0,0.00010705,2]
[360973601,1747172848717,-500.0,0.00010705,2]
[360973602,1747172848738,-500.0,0.00010705,2]
[360973603,1747172848763,-500.0,0.00010705,2]
[360973604,1747172848786,-500.0,0.00010705,2]
[360973605,1747172848808,-309.29501594,0.00010705,2]
[360973606,1747172848832,-500.0,0.00010705,2]
[360973607,1747172848856,-500.0,0.00010705,2]
[360973608,1747172848878,-500.0,0.00010705,2]
[360973609,1747172848902,-500.0,0.00010705,2]
[360973610,1747172848926,-500.0,0.00010705,2]
[360973611,1747172848951,-200.0,0.00010705,2]
[360973612,1747172848976,-500.0,0.00010705,2]
[360973613,1747172848999,-500.0,0.00010705,2]
[360973614,1747172849023,-500.0,0.00010705,2]
[360973615,1747172849048,-500.0,0.00010705,2]
[360973616,1747172849071,-275.65382347,0.00010705,2]
[360973617,1747172849094,-500.0,0.00010705,2]
[360973618,1747172849120,-500.0,0.00010705,2]
[360973619,1747172849143,-500.0,0.00010705,2]
[360973620,1747172849166,-500.0,0.00010705,2]
[360973621,1747172849191,-332.13774063,0.00010705,2]
[360973622,1747172879574,-4989.0,0.00010598,2]
[360973636,1747172945083,-11.0,0.00010598,2]
[360973637,1747172945104,-167.86225937,0.00010705,2]
[360973638,1747172945126,-500.0,0.00010705,2]
[360973639,1747172945148,-500.0,0.00010705,2]
[360973640,1747172945171,-500.0,0.00010705,2]
[360973641,1747172945194,-500.0,0.00010705,2]
[360973642,1747172945221,-500.0,0.00010705,2]
[360973643,1747172945244,-500.0,0.00010705,2]
[360973644,1747172945267,-382.7427124,0.00010705,2]
[360973645,1747172945290,-500.0,0.00010705,2]
[360973646,1747172945312,-500.0,0.00010705,2]
[360973647,1747172945334,-500.0,0.00010705,2]
[360973648,1747172945356,-500.0,0.00010705,2]
[360973649,1747172945376,-500.0,0.00010705,2]
[360973650,1747172945397,-501.08224958,0.00010705,2]
[360973651,1747172945419,-500.0,0.00010705,2]
[360973652,1747172945440,-500.0,0.00010705,2]
[360973653,1747172945461,-500.0,0.00010705,2]
[360973654,1747172945483,-500.0,0.00010705,2]
[360973655,1747172945504,-500.0,0.00010705,2]
[360973656,1747172945525,-500.0,0.00010705,2]
[360973657,1747172945546,-500.0,0.00010705,2]
[360973658,1747172945567,-444.68441155,0.00010705,2]
[360973659,1747172945588,-500.0,0.00010705,2]
[360973660,1747172945611,-500.0,0.00010705,2]
[360973661,1747172945632,-500.0,0.00010705,2]
[360973662,1747172945654,-500.0,0.00010705,2]
[360973663,1747172945675,-500.0,0.00010705,2]
[360973664,1747172945696,-500.0,0.00010705,2]
[360973665,1747172945717,-500.0,0.00010705,2]
[360973666,1747172945739,-500.0,0.00010705,2]
[360973667,1747172945759,-500.0,0.00010705,2]
[360973668,1747172945781,-500.0,0.00010705,2]
[360973669,1747172945801,-388.17862424,0.00010705,2]
[360973670,1747172945824,-500.0,0.00010705,2]
[360973671,1747172945845,-500.0,0.00010705,2]
[360973672,1747172945866,-500.0,0.00010705,2]
[360973673,1747172945888,-500.0,0.00010705,2]
[360973674,1747172945908,-500.0,0.00010705,2]
[360973675,1747172945934,-500.0,0.00010705,2]
[360973676,1747172945954,-500.0,0.00010705,2]
[360973677,1747172945975,-500.0,0.00010705,2]
[360973678,1747172945999,-500.0,0.00010705,2]
[360973679,1747172946021,-500.0,0.00010705,2]
[360973680,1747172946043,-500.0,0.00010705,2]
[360973681,1747172946064,-500.0,0.00010705,2]
[360973682,1747172946085,-500.0,0.00010705,2]
[360973683,1747172946106,-500.0,0.00010705,2]
[360973684,1747172946130,-500.0,0.00010705,2]
[360973685,1747172946152,-500.0,0.00010705,2]
[360973686,1747172946175,-500.0,0.00010705,2]
[360973687,1747172946197,-500.0,0.00010705,2]
[360973688,1747172946222,-500.0,0.00010705,2]
[360973689,1747172946244,-500.0,0.00010705,2]
[360973690,1747172946267,-500.0,0.00010705,2]
[360973691,1747172946303,-500.0,0.00010705,2]
[360973692,1747172946334,-500.0,0.00010705,2]
[360973693,1747172946364,-500.0,0.00010705,2]
[360973694,1747172946389,-500.0,0.00010705,2]
[360973695,1747172946417,-500.0,0.00010705,2]
[360973696,1747172946444,-500.0,0.00010705,2]
[360973697,1747172946472,-500.0,0.00010705,2]
[360973698,1747172946501,-500.0,0.00010705,2]
[360973699,1747172946529,-288.57585098,0.00010705,2]
[360973700,1747172946558,-500.0,0.00010705,2]
[360973701,1747172946587,-500.0,0.00010705,2]
[360973702,1747172946616,-500.0,0.00010705,2]
[360973703,1747172946643,-500.0,0.00010705,2]
[360973704,1747172946670,-500.0,0.00010705,2]
[360973705,1747172946698,-500.0,0.00010705,2]
[360973706,1747172946726,-500.0,0.00010705,2]
[360973707,1747172946753,-500.0,0.00010705,2]
[360973708,1747172946777,-1200.0,0.00010705,2]
[360973709,1747172946799,-300.0,0.00010705,2]
[360973710,1747172946826,-24900.0,0.00010707,2]
[360973711,1747172946855,-254.5611619,0.00010895,2]
[360973712,1747172946886,-500.0,0.00010959,2]
[360973713,1747172946915,-500.0,0.00010959,2]
[360973714,1747172946944,-500.0,0.00010959,2]
[360973715,1747172946974,-500.0,0.00010959,2]
[360973716,1747172947004,-532.64903955,0.00010959,2]
[360973717,1747172947030,-500.0,0.00010959,2]
[360973718,1747172947056,-500.0,0.00010959,2]
[360973719,1747172947080,-500.0,0.00010959,2]
[360973720,1747172947109,-500.0,0.00010959,2]
[360973721,1747172947138,-500.0,0.00010959,2]
[360973722,1747172947165,-500.0,0.00010959,2]
[360973723,1747172947190,-500.0,0.00010959,2]
[360973724,1747172947218,-500.0,0.00010959,2]
[360973725,1747172947247,-500.0,0.00010959,2]
[360973726,1747172947275,-500.0,0.00010959,2]
[360973727,1747172947303,-500.0,0.00010959,2]
[360973728,1747172947328,-500.0,0.00010959,2]
[360973729,1747172947354,-500.0,0.00010959,2]
[360973730,1747172947379,-500.0,0.00010959,2]
[360973731,1747172947409,-500.0,0.00010959,2]
[360973732,1747172947435,-500.0,0.00010959,2]
[360973733,1747172947460,-500.0,0.00010959,2]
[360973734,1747172947486,-500.0,0.00010959,2]
[360973735,1747172947513,-500.0,0.00010959,2]
[360973736,1747172947542,-500.0,0.00010959,2]
[360973737,1747172947569,-500.0,0.00010959,2]
[360973738,1747172947596,-500.0,0.00010959,2]
[360973739,1747172947625,-500.0,0.00010959,2]
[360973740,1747172947651,-552.34028873,0.00010959,2]
[360973741,1747172947679,-500.0,0.00010959,2]
[360973742,1747172947706,-93.65876697,0.00010959,2]
[360973744,1747172953506,-406.34123303,0.00010959,2]
[360973745,1747172953531,-41.28381264,0.00010959,2]
[360973746,1747172962086,-5000.0,0.00010849,2]
[360973747,1747172962108,-458.71618736,0.00010959,2]
[360973748,1747172962130,-500.0,0.00010959,2]
[360973749,1747172962151,-62.2135464,0.00011293,2]
[360973803,1747173032010,-3254.57413593,0.0001118,2]
[360973806,1747173032022,-1745.42586407,0.0001118,2]
[360973808,1747173032032,-187.7864536,0.00011293,2]
[360973810,1747173032042,-436.51854712,0.00011317,2]
[360973813,1747173032066,-763.48145288,0.00011317,2]
[360973814,1747173032076,-579.96355054,0.00011318,2]
[360973939,1747173037926,-500.0,0.00010704,2]
[360973940,1747173037936,-124.20491612,0.00010704,2]
[360973942,1747173038590,-375.79508388,0.00010704,2]
[360973943,1747173038600,-500.0,0.00010704,2]
[360973944,1747173038610,-500.0,0.00010704,2]
[360973945,1747173038620,-386.74199039,0.00010704,2]
[360973946,1747173038630,-500.0,0.00010704,2]
[360973947,1747173038640,-482.16964807,0.00010704,2]
[360973948,1747173038650,-177.2376655,0.00011318,2]
[360973949,1747173038761,-157.98390906,0.00011318,2]
[360973951,1747173042014,-283.39801868,0.00011318,2]
[360974249,1747173045990,-5000.0,0.00011205,2]
[360974250,1747173046001,-570.00119975,0.00011318,2]
[360974274,1747173501543,-164.7785177,0.00010321,2]
[360974300,1747173807442,-157.83918439,0.0001053,2]
[360974302,1747173811666,-225.0357138,0.0001053,2]
[360974304,1747173813875,-235.50125494,0.0001053,2]
[360974307,1747173819310,-222.73251824,0.0001053,2]
[360974311,1747173821750,-156.69914181,0.0001053,2]
[360974313,1747173823052,-174.26700797,0.0001053,2]
[360974314,1747173825319,-246.16366903,0.0001053,2]
[360974315,1747173826928,-255.58225956,0.0001053,2]
[360974316,1747173830312,-160.7475224,0.0001053,2]
[360974317,1747173832767,-189.06289489,0.0001053,2]
[360974318,1747173871171,-2787.0,0.0001053,2]
[360974319,1747173939909,-164.8301552,0.00010528,2]
[360974320,1747173939935,-97.1698448,0.0001053,2]
[360974321,1747174004515,-4976.0,0.00010425,2]
[360974322,1747174027485,-360.10036042,0.0001,2]
[360974323,1747174028224,-7594.06940046,0.0001,2]
[360974324,1747174029059,-182.90394334,0.0001,2]
[360974325,1747174030097,-1118.1803263,0.0001,2]
[360974326,1747174030623,-267.9280847,0.0001,2]
[360974327,1747174032916,-152.00844339,0.0001,2]
[360974328,1747174034978,-319.12266569,0.0001,2]
[360974329,1747174037067,-200.30416869,0.0001,2]
[360974330,1747174038735,-267.22938112,0.0001,2]
[360974331,1747174041016,-346.618328,0.0001,2]
[360974332,1747174044228,-230.23822979,0.0001,2]
[360974333,1747174046401,-269.76177021,0.0001,2]
[360974334,1747174048738,-423.78892841,0.0001,2]
[360974335,1747174050528,-213.89203109,0.0001,2]
[360974336,1747174052765,-243.10366515,0.0001,2]
[360974337,1747174054797,-195.21107159,0.0001,2]
[360974338,1747174057692,-300.0,0.0001,2]
[360974339,1747174061359,-210.60010565,0.0001,2]
[360974340,1747174072321,-24.0,0.00010425,2]
[360974341,1747174078337,199.0,0.00010425,2]
[360974345,1747174152137,-4801.0,0.00010425,2]
[360974346,1747174152161,-300.0,0.00010632,2]
[360974347,1747174152183,-500.0,0.00010633,2]
[360974348,1747174152204,-18.92703595,0.00010633,2]
[360974349,1747174155123,-481.07296405,0.00010633,2]
[360974350,1747174155144,-500.0,0.00010633,2]
[360974351,1747174155167,-500.0,0.00010633,2]
[360974352,1747174155188,-500.0,0.00010633,2]
[360974353,1747174155208,-500.0,0.00010633,2]
[360974354,1747174155230,-500.0,0.00010633,2]
[360974355,1747174155254,-500.0,0.00010633,2]
[360974356,1747174155276,-500.0,0.00010633,2]
[360974357,1747174155298,-262.0,0.00010633,2]
[360974358,1747174155321,-500.0,0.00010633,2]
[360974359,1747174155343,-232.01984714,0.00010633,2]
[360974360,1747174155365,-500.0,0.00010633,2]
[360974361,1747174155387,-495.90840054,0.00010633,2]
[360974362,1747174155408,-649.68080979,0.00010633,2]
[360974363,1747174155432,-500.0,0.00010633,2]
[360974364,1747174155456,-500.0,0.00010633,2]
[360974365,1747174155479,-500.0,0.00010633,2]
[360974366,1747174155503,-500.0,0.00010633,2]
[360974367,1747174155526,-500.0,0.00010633,2]
[360974368,1747174155549,-500.0,0.00010633,2]
[360974369,1747174155571,-500.0,0.00010633,2]
[360974370,1747174155595,-438.48695089,0.00010633,2]
[360974371,1747174155625,-500.0,0.00010633,2]
[360974372,1747174155648,-248.82655992,0.00010633,2]
[360974373,1747174155669,-500.0,0.00010633,2]
[360974374,1747174155691,-500.0,0.00010633,2]
[360974375,1747174155713,-222.56678181,0.00010633,2]
[360974376,1747174155734,-1200.0,0.00010634,2]
[360974377,1747174155754,-500.0,0.00010635,2]
[360974378,1747174155777,-500.0,0.00010635,2]
[360974379,1747174155798,-470.71939328,0.00010635,2]
[360974380,1747174155819,-537.51875365,0.00010635,2]
[360974381,1747174155841,-500.0,0.00010635,2]
[360974382,1747174155863,-450.0,0.00010635,2]
[360974383,1747174155885,-298.93385237,0.00010635,2]
[360974384,1747174155907,-17030.83543176,0.00010636,2]
[360974385,1747174158125,-6774.44159384,0.00010636,2]
[360974386,1747174165093,-1094.7229744,0.00010636,2]
[360974387,1747174165119,-229.9041225,0.00010735,2]
[360974388,1747174165144,-2288.1714474,0.00010864,2]
[360974389,1747174165174,-500.0,0.00010959,2]
[360974390,1747174165202,-500.0,0.00010959,2]
[360974391,1747174165234,-91.24601732,0.00010959,2]
[360974392,1747174168090,-494.9505393,0.0001053,2]
[360974437,1747174232394,-4505.0494607,0.0001053,2]
[360974438,1747174232404,-698.5794784,0.00010568,2]
[360974439,1747174232414,-300.0,0.00010695,2]
[360974440,1747174232424,-273.0,0.00010695,2]
[360974441,1747174232435,-10000.0,0.00010696,2]
[360974442,1747174232445,-408.75398268,0.00010959,2]
[360974443,1747174232455,-608.49893283,0.00010959,2]
[360974444,1747174232466,-652.61296533,0.0001109,2]
[360974445,1747174232475,-250.0,0.00011197,2]
[360974446,1747174232485,-317.1236158,0.00011415,2]
[360974447,1747174232495,-420.0,0.00011756,2]
[360974448,1747174232504,-167.01410383,0.00012229,2]
[360974449,1747174232514,-172.43,0.00012329,2]
[360974450,1747174232525,-6970.83784645,0.00012329,2]
[360974543,1747174238044,-10437.9888958,0.00012329,2]
[360974549,1747174240308,-5000.0,0.00012205,2]
[360974550,1747174240320,-3706.75325775,0.00012329,2]
[360974551,1747174240330,-17596.32,0.00012329,2]
[360974552,1747174240340,-14663.6,0.00012329,2]
[360974554,1747174240351,-12219.66,0.00012329,2]
[360974555,1747174240361,-10183.05,0.00012329,2]
[360974556,1747174240372,-8485.88,0.00012329,2]
[360974558,1747174240383,-7071.56,0.00012329,2]
[360974560,1747174240400,-5892.97,0.00012329,2]
[360974562,1747174240411,-4910.81,0.00012329,2]
[360974564,1747174240422,-4092.34,0.00012329,2]
[360974566,1747174240432,-3410.28,0.00012329,2]
[360974568,1747174240443,-2841.9,0.00012329,2]
[360974569,1747174240454,-2368.25,0.00012329,2]
[360974570,1747174240464,-1786.62674225,0.00012329,2]
[360974577,1747174240854,-89.4084462,0.00012329,2]
[360974621,1747174246175,-97.51481155,0.00012329,2]
[360974622,1747174246185,-1644.62,0.00012329,2]
[360974624,1747174246195,-1370.52,0.00012329,2]
[360974626,1747174246204,-1142.1,0.00012329,2]
[360974628,1747174246215,-951.75,0.00012329,2]
[360974630,1747174246224,-924.29,0.00012329,2]
[360974632,1747174246234,-924.29,0.00012329,2]
[360974634,1747174246243,-616.19,0.00012329,2]